bitfinex/quotes_SOLUSD_20240702
["timestamp","ask_amount","ask_price","bid_price","bid_amount"]
[1719948494727,15.9905,152.44,152.36,13.52]
[1719948494932,13.52,152.41,152.36,13.52]
[1719948495659,13.52,152.41,152.33,100.0]
[1719948495947,13.52,152.41,152.36,13.52]
[1719948496155,13.52,152.4,152.35,13.52]
[1719948498356,13.52,152.37,152.26,22.0812]
[1719948498557,13.52,152.37,152.31,13.52]
[1719948498940,13.52,152.37,152.26,15.8925]
[1719948499242,13.52,152.37,152.31,13.52]
[1719948499551,13.52,152.37,152.26,15.8925]
[1719948499747,13.52,152.37,152.31,13.52]
[1719948500136,13.52,152.37,152.32,13.52]
[1719948500336,22.9628,152.39,152.33,13.52]
[1719948500555,33.52,152.38,152.33,13.52]
[1719948503552,36.4828,152.39,152.34,13.52]
[1719948503745,22.9628,152.39,152.35,13.52]
[1719948506666,22.9628,152.39,152.29,100.0]
[1719948506864,22.9628,152.39,152.35,13.52]
[1719948507167,16.6447,152.39,152.35,13.52]
[1719948507461,49.77869493,152.46,152.36,13.52]
[1719948507462,13.52,152.41,152.36,13.52]
[1719948507661,13.52,152.42,152.32,13.52]
[1719948507852,13.52,152.42,152.37,13.52]
[1719948509045,20.0808,152.42,152.37,13.52]
[1719948509247,13.52,152.41,152.36,13.52]
[1719948509794,22.4493,152.43,152.36,13.52]
[1719948509961,13.52,152.41,152.36,13.52]
[1719948510164,13.52,152.41,152.31,116.1657]
[1719948510353,13.52,152.4,152.31,116.1657]
[1719948510553,13.52,152.4,152.35,13.52]
[1719948510775,13.52,152.4,152.31,116.1657]
[1719948511184,13.52,152.4,152.35,13.52]
[1719948511954,6.5609,152.42,152.35,13.52]
[1719948512158,13.52,152.4,152.31,116.1657]
[1719948512364,13.52,152.4,152.35,13.52]
[1719948512565,13.52,152.4,152.31,116.1657]
[1719948512750,13.52,152.4,152.35,13.52]
[1719948512954,13.52,152.4,152.34,13.52]
[1719948513674,13.52,152.39,152.34,13.52]
[1719948514568,13.52,152.39,152.31,116.1657]
[1719948514875,13.52,152.39,152.34,13.52]
[1719948515388,6.5609,152.42,152.34,13.52]
[1719948515562,13.52,152.39,152.34,13.52]
[1719948517570,29.6414,152.38,152.32,13.52]
[1719948518080,13.52,152.37,152.32,13.52]
[1719948518685,29.6414,152.38,152.33,13.52]
[1719948519099,16.1214,152.38,152.33,13.52]
[1719948519283,16.1214,152.38,152.34,13.52]
[1719948519598,6.83353652,152.44,152.37,113.52]
[1719948519804,15.8877,152.45,152.42,13.52]
[1719948520172,15.8877,152.45,152.41,13.52]
[1719948520373,13.52,152.44,152.39,13.52]
[1719948520672,15.8877,152.45,152.35,15.5253]
[1719948520892,15.8877,152.45,152.34,6.5632]
[1719948520893,13.52,152.43,152.38,13.52]
[1719948521080,13.52,152.43,152.34,6.5632]
[1719948521081,13.52,152.44,152.39,13.52]
[1719948521285,15.8877,152.45,152.41,13.52]
[1719948522082,15.8877,152.45,152.35,100.0]
[1719948522280,29.4077,152.45,152.4,13.52]
[1719948523588,29.4077,152.45,152.34,5.13964462]
[1719948523589,13.52,152.42,152.34,5.13964462]
[1719948523806,13.52,152.42,152.37,13.52]
[1719948524286,13.52,152.42,152.31,122.3733]
[1719948524483,13.52,152.42,152.32,54.08]
[1719948524682,15.8877,152.45,152.32,54.08]
[1719948524889,15.8877,152.45,152.31,127.60801144]
[1719948525090,15.8877,152.45,152.38,13.52]
[1719948525275,15.8877,152.45,152.34,100.0]
[1719948525276,13.52,152.44,152.39,13.52]
[1719948525680,13.52,152.44,152.38,13.52]
[1719948526290,13.52,152.43,152.32,154.08]
[1719948526587,13.52,152.43,152.38,13.52]
[1719948527276,13.52,152.43,152.34,100.0]
[1719948527604,13.52,152.43,152.38,13.52]
[1719948528202,15.8877,152.45,152.39,13.52]
[1719948528393,13.52,152.44,152.39,13.52]
[1719948528695,13.52,152.43,152.34,100.0]
[1719948528884,15.8877,152.45,152.39,13.52]
[1719948529094,13.52,152.44,152.39,13.52]
[1719948529288,15.8877,152.45,152.39,13.52]
[1719948529593,29.4077,152.45,152.4,13.52]
[1719948534105,15.8877,152.45,152.4,13.52]
[1719948534287,13.52,152.44,152.39,13.52]
[1719948534598,15.8877,152.45,152.39,13.52]
[1719948534806,13.52,152.44,152.39,13.52]
[1719948536005,15.8877,152.45,152.39,13.52]
[1719948536193,15.8877,152.45,152.4,13.52]
[1719948536594,29.4077,152.45,152.4,13.52]
[1719948537298,15.8877,152.45,152.41,13.52]
[1719948538993,15.8877,152.45,152.42,13.52]
[1719948539301,15.8877,152.45,152.43,13.52]
[1719948540779,15.8877,152.45,152.42,13.52]
[1719948542690,6.102,152.47,152.37,122.2854]
[1719948542887,6.102,152.47,152.43,13.52]
[1719948543212,19.622,152.47,152.42,13.52]
[1719948545691,6.102,152.47,152.42,13.52]
[1719948546995,6.102,152.47,152.38,100.0]
[1719948547187,6.102,152.47,152.42,13.52]
[1719948547584,19.622,152.47,152.42,13.52]
[1719948548014,13.52,152.46,152.4,13.52]
[1719948550312,13.52,152.46,152.41,13.52]
[1719948551006,6.102,152.47,152.37,15.8744]
[1719948551206,13.52,152.45,152.4,13.52]
[1719948552110,30.0758,152.43,152.34,105.2746608]
[1719948552314,30.0758,152.43,152.38,13.52]
[1719948553100,16.5558,152.43,152.39,13.52]
[1719948553409,16.5558,152.43,152.34,105.2746608]
[1719948553614,30.0758,152.43,152.38,13.52]
[1719948556505,16.5558,152.43,152.38,13.52]
[1719948556918,16.5558,152.43,152.39,13.52]
[1719948557615,16.5558,152.43,152.34,105.2746608]
[1719948557815,16.5558,152.43,152.39,13.52]
[1719948560534,16.5558,152.43,152.34,105.2746608]
[1719948561024,16.5558,152.43,152.39,13.52]
[1719948561621,16.5558,152.43,152.34,105.2746608]
[1719948562029,16.5558,152.43,152.39,13.52]
[1719948563211,16.5558,152.43,152.4,13.52]
[1719948564429,16.5558,152.43,152.34,105.2746608]
[1719948564609,16.5558,152.43,152.4,13.52]
[1719948566206,16.5558,152.43,152.34,105.2746608]
[1719948566436,16.5558,152.43,152.39,13.52]
[1719948566622,16.5558,152.43,152.4,13.52]
[1719948573428,15.3147,152.45,152.34,205.2746608]
[1719948573614,15.3147,152.45,152.42,13.52]
[1719948574314,15.3147,152.45,152.36,100.0]
[1719948574533,15.3147,152.45,152.42,13.52]
[1719948578222,15.3147,152.45,152.41,13.52]
[1719948580738,15.3147,152.45,152.42,13.52]
[1719948584525,15.3147,152.45,152.34,105.2746608]
[1719948584725,28.8347,152.45,152.34,105.2746608]
[1719948585042,28.8347,152.45,152.4,13.52]
[1719948586824,28.8347,152.45,152.34,105.2746608]
[1719948587025,13.52,152.44,152.39,13.52]
[1719948587942,15.3147,152.45,152.39,13.52]
[1719948588140,15.3147,152.45,152.4,13.52]
[1719948591450,28.8347,152.45,152.39,13.52]
[1719948592027,28.8347,152.45,152.34,105.2746608]
[1719948592346,13.52,152.44,152.39,13.52]
[1719948593245,28.8347,152.45,152.39,13.52]
[1719948593447,13.52,152.44,152.39,13.52]
[1719948593644,13.52,152.44,152.34,105.2746608]
[1719948593849,13.52,152.44,152.39,13.52]
[1719948594649,28.8347,152.45,152.4,13.52]
[1719948596748,28.8347,152.45,152.34,105.2746608]
[1719948596749,13.52,152.44,152.34,105.2746608]
[1719948596954,13.52,152.44,152.39,13.52]
[1719948600360,13.52,152.44,152.34,105.2746608]
[1719948600657,15.3147,152.45,152.34,5.2746608]
[1719948600658,13.52,152.43,152.34,5.2746608]
[1719948600867,13.52,152.43,152.38,13.52]
[1719948601360,15.3147,152.45,152.4,13.52]
[1719948601537,28.8347,152.45,152.4,13.52]
[1719948603151,28.8347,152.45,152.39,13.52]
[1719948604657,15.3147,152.45,152.38,100.0]
[1719948604957,6.102,152.47,152.38,100.0]
[1719948604958,6.102,152.47,152.43,13.52]
[1719948605348,6.102,152.47,152.38,100.0]
[1719948605552,6.102,152.47,152.42,13.52]
[1719948606251,19.622,152.47,152.36,100.0]
[1719948606557,13.52,152.45,152.4,13.52]
[1719948607260,13.52,152.45,152.35,100.0]
[1719948607460,13.52,152.46,152.34,100.0]
[1719948607662,13.52,152.46,152.4,13.52]
[1719948608442,13.52,152.45,152.4,13.52]
[1719948608645,29.924,152.46,152.4,13.52]
[1719948609159,29.924,152.46,152.41,13.52]
[1719948609358,29.924,152.46,152.34,100.0]
[1719948609556,29.924,152.46,152.41,13.52]
[1719948616340,29.924,152.46,152.33,127.43743559]
[1719948616341,16.404,152.46,152.36,100.0]
[1719948616566,16.404,152.46,152.43,13.52]
[1719948616770,16.404,152.46,152.42,13.52]
[1719948618156,29.924,152.46,152.36,100.0]
[1719948618360,13.52,152.45,152.4,13.52]
[1719948618843,16.404,152.46,152.41,13.52]
[1719948619246,16.404,152.46,152.36,100.0]
[1719948619247,22.9632,152.46,152.36,100.0]
[1719948619467,16.404,152.46,152.41,13.52]
[1719948619854,16.404,152.46,152.42,13.52]
[1719948621966,16.404,152.46,152.36,100.0]
[1719948622168,16.404,152.46,152.42,13.52]
[1719948623148,6.102,152.47,152.45,13.52]
[1719948623350,6.102,152.47,152.44,13.52]
[1719948623549,6.102,152.47,152.43,13.52]
[1719948624277,6.102,152.47,152.42,13.52]
[1719948625267,6.102,152.47,152.43,13.52]
[1719948627554,6.102,152.47,152.4,13.52]
[1719948627750,6.102,152.47,152.38,115.8639]
[1719948627751,6.102,152.47,152.43,13.52]
[1719948628174,6.102,152.47,152.42,13.52]
[1719948628563,15.874,152.5,152.38,115.8639]
[1719948628564,15.874,152.5,152.43,13.52]
[1719948628766,33.52,152.49,152.43,13.52]
[1719948629767,13.52,152.48,152.43,13.52]
[1719948630401,20.0,152.49,152.43,13.52]
[1719948630682,33.52,152.49,152.43,13.52]
[1719948631051,13.52,152.48,152.43,13.52]
[1719948631789,13.52,152.48,152.38,115.8639]
[1719948632097,13.52,152.48,152.43,13.52]
[1719948633985,20.0,152.49,152.44,13.52]
[1719948634780,13.8456286,152.52,152.46,100.0]
[1719948634986,6.1532,152.57,152.51,13.52]
[1719948635170,6.1532,152.57,152.54,13.52]
[1719948635370,6.1532,152.57,152.44,15.1982]
[1719948635371,13.52,152.55,152.44,15.1982]
[1719948635588,6.1532,152.57,152.44,115.1982]
[1719948635761,13.52,152.54,152.44,115.1982]
[1719948636169,13.52,152.55,152.5,13.52]
[1719948636372,19.6732,152.57,152.51,13.52]
[1719948636678,19.6732,152.57,152.52,13.52]
[1719948636679,6.1532,152.57,152.52,13.52]
[1719948637083,19.6732,152.57,152.52,13.52]
[1719948637464,6.1532,152.57,152.52,13.52]
[1719948637664,19.6732,152.57,152.52,13.52]
[1719948638279,6.1532,152.57,152.54,13.52]
[1719948638474,15.6879,152.58,152.48,113.52]
[1719948638679,15.6879,152.58,152.55,13.52]
[1719948639688,15.6879,152.58,152.5,100.0]
[1719948639689,6.2169,152.61,152.57,13.52]
[1719948639990,16.4104,152.62,152.5,116.4282]
[1719948639991,16.4104,152.62,152.6,13.52]
[1719948640301,16.4104,152.62,152.61,13.52]
[1719948641005,16.4104,152.68,152.61,13.52]
[1719948641170,16.4104,152.68,152.58,16.4282]
[1719948641171,16.4104,152.68,152.66,13.52]
[1719948641687,16.4104,152.68,152.58,16.4282]
[1719948641995,16.4104,152.68,152.65,13.52]
[1719948642160,16.4104,152.68,152.64,13.52]
[1719948642366,16.4104,152.68,152.58,16.4282]
[1719948642590,16.4104,152.68,152.64,13.52]
[1719948643103,16.4104,152.68,152.65,13.52]
[1719948643870,16.4104,152.68,152.66,13.52]
[1719948644298,16.4104,152.68,152.67,13.52]
[1719948646084,15.5395,152.72,152.67,13.52]
[1719948646285,20.0,152.71,152.67,13.52]
[1719948648491,20.0,152.71,152.69,13.52]
[1719948648690,6.3676,152.73,152.64,13.52]
[1719948648897,15.6261,152.75,152.72,13.52]
[1719948649418,0.8713355,152.76,152.72,13.52]
[1719948649798,0.8713355,152.76,152.66,15.7737]
[1719948650113,0.8713355,152.76,152.72,13.52]
[1719948650415,0.8713355,152.76,152.66,15.7737]
[1719948650590,0.8713355,152.76,152.71,13.52]
[1719948650791,0.8713355,152.76,152.64,54.08]
[1719948651010,13.52,152.74,152.69,13.52]
[1719948651518,13.52,152.74,152.64,54.08]
[1719948651686,13.52,152.74,152.69,13.52]
[1719948652985,13.52,152.74,152.64,54.08]
[1719948653189,13.52,152.74,152.63,22.3032]
[1719948653190,20.0,152.73,152.63,22.3032]
[1719948653492,20.0,152.73,152.69,13.52]
[1719948654509,33.52,152.74,152.69,13.52]
[1719948655322,40.0672,152.74,152.69,13.52]
[1719948655700,33.52,152.74,152.69,13.52]
[1719948656003,0.8713355,152.76,152.67,100.0]
[1719948656204,0.8713355,152.76,152.75,13.52]
[1719948656400,0.8713355,152.76,152.67,100.0]
[1719948656601,0.8713355,152.76,152.75,13.52]
[1719948661017,0.8713355,152.76,152.67,100.0]
[1719948661214,0.8713355,152.76,152.73,13.52]
[1719948661602,0.8713355,152.76,152.74,13.52]
[1719948665730,0.8713355,152.76,152.75,13.52]
[1719948665894,0.8713355,152.76,152.74,13.52]
[1719948666797,0.8713355,152.76,152.75,13.52]
[1719948673519,0.8713355,152.76,152.67,100.0]
[1719948673836,0.8713355,152.76,152.73,13.52]
[1719948674137,0.8713355,152.76,152.74,13.52]
[1719948677423,0.8713355,152.76,152.75,13.52]
[1719948679338,0.8713355,152.76,152.74,13.52]
[1719948679946,0.8713355,152.76,152.75,13.52]
[1719948680326,0.8713355,152.76,152.74,13.52]
[1719948681622,0.8713355,152.76,152.69,15.4004]
[1719948681623,0.8713355,152.76,152.73,13.52]
[1719948681827,0.8713355,152.76,152.65,5.27821563]
[1719948681828,14.3913355,152.76,152.65,15.2422]
[1719948682032,26.5469,152.75,152.7,13.52]
[1719948682363,40.0668,152.75,152.7,13.52]
[1719948682549,33.52,152.75,152.7,13.52]
[1719948682747,20.0,152.75,152.71,13.52]
[1719948684543,20.0,152.75,152.72,13.52]
[1719948684932,20.0,152.75,152.73,13.52]
[1719948685432,0.8713355,152.76,152.73,13.52]
[1719948687675,0.8713355,152.76,152.75,13.52]
[1719948688033,0.8713355,152.76,152.68,100.0]
[1719948688034,0.8713355,152.76,152.68,9.84445491]
[1719948688254,0.8713355,152.76,152.73,13.52]
[1719948689860,0.8713355,152.76,152.74,13.52]
[1719948690453,0.8713355,152.76,152.69,9.84396996]
[1719948690766,0.8713355,152.76,152.74,13.52]
[1719948691139,0.8713355,152.76,152.73,13.52]
[1719948693563,0.8713355,152.76,152.74,13.52]
[1719948693747,0.8713355,152.76,152.75,13.52]
[1719948703981,0.8713355,152.76,152.71,16.6355]
[1719948704357,0.8713355,152.76,152.75,13.52]
[1719948709568,22.3831,152.85,152.75,113.52]
[1719948709764,15.7517,152.85,152.83,13.52]
[1719948709971,13.52,152.88,152.83,13.52]
[1719948710882,129.24270816,152.89,152.85,13.52]
[1719948711257,122.71040816,152.89,152.86,13.52]
[1719948711570,122.71040816,152.89,152.81,100.0]
[1719948711571,122.71040816,152.89,152.87,13.52]
[1719948713964,107.11280816,152.89,152.87,13.52]
[1719948714161,107.11280816,152.89,152.8,6.6128]
[1719948714374,107.11280816,152.89,152.85,13.52]
[1719948714773,107.11280816,152.89,152.86,13.52]
[1719948714981,107.11280816,152.89,152.87,13.52]
[1719948715460,107.11280816,152.89,152.8,60.6928]
[1719948715461,107.11280816,152.89,152.8,6.6128]
[1719948715663,107.11280816,152.89,152.86,13.52]
[1719948715866,107.11280816,152.89,152.8,60.6928]
[1719948716059,107.11280816,152.89,152.86,13.52]
[1719948716263,107.11280816,152.89,152.87,13.52]
[1719948716785,107.11280816,152.89,152.86,13.52]
[1719948717160,107.11280816,152.89,152.77,105.30155491]
[1719948717394,13.52,152.88,152.83,13.52]
[1719948718067,120.63280816,152.89,152.84,13.52]
[1719948718461,107.11280816,152.89,152.84,13.52]
[1719948718661,120.63280816,152.89,152.84,13.52]
[1719948719456,33.52,152.88,152.77,100.0]
[1719948719678,33.52,152.88,152.83,13.52]
[1719948719885,13.52,152.88,152.83,13.52]
[1719948720270,107.11280816,152.89,152.83,13.52]
[1719948720589,20.0,152.88,152.83,13.52]
[1719948721162,20.0,152.88,152.84,13.52]
[1719948724271,20.0,152.88,152.85,13.52]
[1719948725183,20.0,152.88,152.84,13.52]
[1719948726189,15.0782,152.88,152.79,100.0]
[1719948726371,15.0782,152.88,152.84,13.52]
[1719948728360,15.0782,152.88,152.79,100.0]
[1719948728361,28.5982,152.88,152.83,13.52]
[1719948728563,19.8414,152.87,152.76,27.63953662]
[1719948728795,20.063,152.84,152.76,16.1274]
[1719948729084,13.52,152.84,152.79,13.52]
[1719948729295,13.52,152.85,152.8,13.52]
[1719948730102,13.52,152.85,152.73,100.0]
[1719948730103,13.52,152.84,152.79,13.52]
[1719948730270,13.52,152.83,152.78,13.52]
[1719948730463,13.52,152.83,152.73,100.0]
[1719948730792,13.52,152.83,152.78,13.52]
[1719948730992,13.52,152.83,152.72,76.3824]
[1719948731297,13.52,152.8,152.75,13.52]
[1719948731701,13.52,152.8,152.71,100.0]
[1719948732078,13.52,152.8,152.75,13.52]
[1719948736510,13.52,152.76,152.68,15.9015]
[1719948736882,13.52,152.76,152.71,13.52]
[1719948737087,13.52,152.76,152.68,15.9015]
[1719948737289,13.52,152.76,152.71,13.52]
[1719948738318,13.52,152.78,152.68,115.9015]
[1719948738599,20.0,152.77,152.73,13.52]
[1719948739196,6.3456,152.81,152.76,13.52]
[1719948739398,19.8656,152.81,152.76,13.52]
[1719948739786,13.52,152.8,152.75,13.52]
[1719948740406,13.52,152.79,152.74,13.52]
[1719948740898,13.52,152.79,152.68,115.9015]
[1719948740899,6.5453,152.79,152.68,15.9015]
[1719948741095,13.52,152.75,152.7,13.52]
[1719948743614,13.52,152.76,152.7,13.52]
[1719948743820,80.3546,152.8,152.7,13.52]
[1719948744003,20.0,152.79,152.68,115.9015]
[1719948744205,6.3456,152.81,152.7,100.0]
[1719948744519,6.3456,152.81,152.68,15.9015]
[1719948744520,13.52,152.79,152.68,115.9015]
[1719948744710,13.52,152.79,152.74,13.52]
[1719948748338,13.52,152.8,152.75,13.52]
[1719948748632,33.52,152.8,152.75,13.52]
[1719948749519,20.0,152.8,152.75,13.52]
[1719948749729,33.52,152.8,152.75,13.52]
[1719948752218,33.52,152.8,152.68,115.9015]
[1719948752219,13.52,152.78,152.68,115.9015]
[1719948752530,20.0,152.8,152.72,13.52]
[1719948752531,13.52,152.77,152.72,13.52]
[1719948752907,13.52,152.77,152.68,15.9015]
[1719948753206,13.52,152.77,152.72,13.52]
[1719948753408,20.0,152.8,152.74,13.52]
[1719948753732,13.52,152.79,152.74,13.52]
[1719948754033,20.0,152.78,152.74,13.52]
[1719948754235,20.0,152.78,152.75,13.52]
[1719948754409,6.3456,152.81,152.75,13.52]
[1719948754734,33.52,152.8,152.75,13.52]
[1719948755233,20.0,152.8,152.76,13.52]
[1719948755610,20.0,152.8,152.72,54.08]
[1719948755814,20.0,152.8,152.76,13.52]
[1719948756317,19.5,152.8,152.76,13.52]
[1719948756830,6.3456,152.81,152.76,13.52]
[1719948757030,15.7066,152.82,152.77,13.52]
[1719948757233,15.7066,152.82,152.78,13.52]
[1719948758312,29.2266,152.82,152.77,13.52]
[1719948758646,29.2266,152.82,152.78,13.52]
[1719948758647,15.7066,152.82,152.78,13.52]
[1719948760323,29.2266,152.82,152.77,13.52]
[1719948761040,15.7066,152.82,152.77,13.52]
[1719948761239,29.2266,152.82,152.77,13.52]
[1719948761543,15.7066,152.82,152.77,13.52]
[1719948761722,29.2266,152.82,152.77,13.52]
[1719948762039,15.7066,152.82,152.77,13.52]
[1719948762249,29.2266,152.82,152.77,13.52]
[1719948762453,15.7066,152.82,152.77,13.52]
[1719948762623,15.7066,152.82,152.72,54.08]
[1719948762624,29.2266,152.82,152.72,54.08]
[1719948762951,29.2266,152.82,152.77,13.52]
[1719948763117,15.7066,152.82,152.77,13.52]
[1719948763550,29.2266,152.82,152.77,13.52]
[1719948765134,15.7066,152.82,152.77,13.52]
[1719948765527,29.2266,152.82,152.77,13.52]
[1719948766649,15.7066,152.82,152.77,13.52]
[1719948766952,29.2266,152.82,152.77,13.52]
[1719948767131,15.7066,152.82,152.77,13.52]
[1719948767456,29.2266,152.82,152.77,13.52]
[1719948767750,15.7066,152.82,152.77,13.52]
[1719948767929,15.7066,152.82,152.78,13.52]
[1719948768730,6.393,152.85,152.8,13.52]
[1719948769631,6.393,152.85,152.82,13.52]
[1719948770243,6.393,152.85,152.75,100.0]
[1719948770244,6.393,152.85,152.81,13.52]
[1719948773528,6.393,152.85,152.82,13.52]
[1719948774849,6.393,152.85,152.81,13.52]
[1719948775932,6.393,152.85,152.82,13.52]
[1719948776146,15.7205,152.86,152.83,13.52]
[1719948776534,113.20410816,152.89,152.83,13.52]
[1719948776844,113.20410816,152.89,152.85,13.52]
[1719948778651,133.26480816,152.89,152.76,6.1543]
[1719948778826,13.52,152.88,152.83,13.52]
[1719948779854,126.72410816,152.89,152.83,13.52]
[1719948780431,133.26480816,152.89,152.83,13.52]
[1719948781340,113.20410816,152.89,152.83,13.52]
[1719948781545,126.72410816,152.89,152.83,13.52]
[1719948782152,126.72410816,152.89,152.84,13.52]
[1719948782531,112.70410816,152.89,152.85,13.52]
[1719948785755,112.70410816,152.89,152.86,13.52]
[1719948787154,112.70410816,152.89,152.85,13.52]
[1719948790443,106.61280816,152.89,152.88,13.52]
[1719948794162,106.61280816,152.89,152.81,6.0708]
[1719948794455,106.61280816,152.89,152.85,13.52]
[1719948794842,106.61280816,152.89,152.88,13.52]
[1719948795562,106.61280816,152.89,152.87,13.52]
[1719948796061,106.61280816,152.89,152.86,13.52]
[1719948796439,0.8713355,152.91,152.86,13.52]
[1719948796641,0.8713355,152.91,152.87,13.52]
[1719948797564,0.8713355,152.91,152.88,13.52]
[1719948797747,0.8713355,152.91,152.8,154.08]
[1719948797950,0.8713355,152.91,152.87,13.52]
[1719948798672,0.8713355,152.91,152.88,13.52]
[1719948798846,0.8713355,152.91,152.89,13.52]
[1719948799048,0.8713355,152.91,152.9,13.52]
[1719948803371,0.8713355,152.91,152.85,22.9669]
[1719948803581,0.8713355,152.91,152.9,13.52]
[1719948809971,0.8713355,152.91,152.85,16.6442]
[1719948810190,0.8713355,152.91,152.89,13.52]
[1719948810956,0.8713355,152.91,152.85,16.6442]
[1719948811152,0.8713355,152.91,152.89,13.52]
[1719948811352,14.3913355,152.91,152.82,100.0]
[1719948811657,14.3913355,152.91,152.86,13.52]
[1719948812677,0.8713355,152.91,152.87,13.52]
[1719948813594,0.8713355,152.91,152.88,13.52]
[1719948814264,0.8713355,152.91,152.82,100.0]
[1719948814265,0.8713355,152.91,152.89,13.52]
[1719948814774,0.8713355,152.91,152.9,13.52]
[1719948816773,0.8713355,152.91,152.84,100.0]
[1719948816974,0.8713355,152.91,152.9,13.52]
[1719948817472,0.8713355,152.91,152.85,1.30800931]
[1719948817676,0.8713355,152.91,152.9,13.52]
[1719948818961,0.8713355,152.91,152.86,1.30792374]
[1719948819163,0.8713355,152.91,152.88,13.52]
[1719948819975,0.8713355,152.91,152.89,13.52]
[1719948826689,0.8713355,152.91,152.9,13.52]
[1719948829879,15.1839,152.99,152.9,13.52]
[1719948830085,15.1839,152.99,152.97,13.52]
[1719948830288,15.1839,152.99,152.96,13.52]
[1719948830493,15.1839,152.99,152.89,116.257]
[1719948830787,15.1839,152.99,152.89,16.257]
[1719948830964,15.1839,152.99,152.93,13.52]
[1719948831166,13.52,152.98,152.93,13.52]
[1719948833176,15.1839,152.99,152.94,13.52]
[1719948833377,28.7039,152.99,152.94,13.52]
[1719948834581,15.1839,152.99,152.95,13.52]
[1719948838294,15.1839,152.99,152.96,13.52]
[1719948840209,6.5369,152.98,152.89,16.257]
[1719948840410,13.52,152.97,152.85,125.04748265]
[1719948840703,13.52,152.95,152.89,13.52]
[1719948840901,13.52,152.95,152.9,13.52]
[1719948841107,13.52,152.95,152.85,15.2175]
[1719948841297,13.52,152.94,152.89,13.52]
[1719948841682,13.52,152.94,152.9,13.52]
[1719948841886,13.52,152.95,152.9,13.52]
[1719948842081,13.52,152.94,152.89,13.52]
[1719948842293,13.52,152.95,152.9,13.52]
[1719948843503,20.0,152.97,152.85,15.2175]
[1719948843714,13.52,152.97,152.91,13.52]
[1719948843909,13.52,152.97,152.86,0.65515095]
[1719948843910,20.0,152.96,152.92,13.52]
[1719948844119,15.1839,152.99,152.88,13.52]
[1719948844423,13.34662868,153.06,152.88,13.52]
[1719948844424,15.9545,153.04,152.94,13.52]
[1719948844588,15.9545,153.04,152.93,200.0]
[1719948844589,15.9545,153.04,153.01,13.52]
[1719948845407,0.8713355,153.06,153.03,13.52]
[1719948845987,0.8713355,153.06,152.95,200.0]
[1719948846189,0.8713355,153.06,153.03,13.52]
[1719948846505,0.8713355,153.06,153.02,13.52]